Cogmind - Beta 17 @@@ ROGUE MODE // 2026.07.09 @ 16:33:29 Player: flowerfeast Result: Destroyed by Y-45 Defender with Beam Rifle Performance ------------- Evolutions (2) 1000 Regions Visited (5) 1000 Robots Destroyed (76) 380 Value Destroyed (2240) 2240 Prototype IDs (1) 20 Alien Tech Used (0) 0 Bonus (193) 193 TOTAL SCORE: 4833 Bonus ------- High Alert Combat Kills 88 Follower Combat Kills 105 Cogmind --------- Core Integrity 0/550 Matter 75/300 Energy 240/240 System Corruption 0% Temperature Cool (9) Movement Treading (250) Ox1 Location -8/Storage Parts ------- > --- POWER (1) -------- Nuclear Core > --- PROPULSION (4) --- Armored Treads > --- UTILITY (4) ------ Large Storage Unit Machine Analyzer Terrain Scan Processor Improved Utility Shielding > --- WEAPON (2) ------- Gauss Rifle > --- INVENTORY (15) --- Light Nuclear Core Reactive Plating Mini Grenade Launcher Mini Grenade Launcher Katana Peak State ------------ > --- POWER ------------ Nuclear Core > --- PROPULSION ------- Light Treads Improved Treads Armored Treads > --- UTILITY ---------- Large Storage Unit Machine Analyzer Terrain Scan Processor Improved Utility Shielding > --- WEAPON ----------- Gauss Rifle Heavy Missile Launcher > --- INVENTORY -------- Nuclear Core Light Nuclear Core Reactive Plating Shotgun Mini Grenade Launcher Mini Grenade Launcher [Rating: 27] Favorites ----------- Power Ion Engine Engine Ion Engine Power Core Nuclear Core Propulsion Aluminum Leg Treads Armored Treads Leg Aluminum Leg Utility Large Storage Unit Device Terrain Scanner Storage Large Storage Unit Processor Terrain Scan Processor Protection Improved Utility Shielding Weapon Shotgun Energy Gun Improved Medium Laser Ballistic Gun Shotgun Launcher Heavy Missile Launcher Special Weapon Enhanced Flamer Impact Weapon Heavy Hammer Build | -11 -10 -9 -9 -8 -8 ------- Run | Yrd Mat Mat Min Mat Sto Slots Evolved 4 | . . 2 . 2 . Power . | . . . . . . Propulsion 2 | . . 2 . . . Utility 2 | . . . . 2 . Weapon . | . . . . . . Parts Attached 43 | 6 9 9 . 10 9 Power 7 | 1 2 2 . 1 1 Engine 4 | 1 2 1 . . . Core 3 | . . 1 . 1 1 Reactor . | . . . . . . Propulsion 13 | 2 2 4 . 2 3 Treads 5 | . . . . 2 3 Leg 8 | 2 2 4 . . . Wheel . | . . . . . . Hover . | . . . . . . Flight . | . . . . . . Utility 8 | 1 2 1 . 4 . Device 1 | . . . . 1 . Storage 2 | 1 1 . . . . Processor 2 | . . . . 2 . Hackware . | . . . . . . Protection 3 | . 1 1 . 1 . Artifact . | . . . . . . Weapon 15 | 2 3 2 . 3 5 Energy Gun 1 | . . . . . 1 Energy Cannon . | . . . . . . Ballistic Gun 8 | 2 3 1 . . 2 Ballistic Cannon . | . . . . . . Launcher 4 | . . . . 2 2 Special Weapon 1 | . . . . 1 . Impact Weapon 1 | . . 1 . . . Slashing Weapon . | . . . . . . Piercing Weapon . | . . . . . . Special Melee Weapon . | . . . . . . Unidentified Prototypes 1 | . . . . . 1 Parts Lost 24 | . . 9 . 8 7 Power 3 | . . 1 . 1 1 Propulsion 10 | . . 4 . 2 4 Utility 3 | . . 1 . 2 . Weapon 8 | . . 3 . 3 2 Highest Loss Streak 4 | . . 4 . 4 3 To Critical Strikes . | . . . . . . Average Backups 5 | 1 6 7 6 4 5 Power 1 | . 1 2 2 1 1 Propulsion . | . 1 . . . . Utility 2 | . 2 2 3 . 1 Weapon 1 | . 1 1 1 1 2 Tool/Special . | . . . . . . Unused Backups 6 | . 2 1 . . 3 Power 3 | . 1 1 . . 1 Propulsion . | . . . . . . Utility 1 | . . . . . 1 Weapon 2 | . 1 . . . 1 Tool/Special . | . . . . . . Average Slot Usage (%) 79 | . 92 92 66 51 84 Engine 7 | . 14 5 11 1 . Core 2 | . . 5 . 1 9 Treads 4 | . . . . 2 23 Leg 20 | . 28 41 22 . . Device 1 | . . . . 6 . Storage 11 | . 14 11 11 9 9 Processor 4 | . . . . 9 18 Protection 8 | . 7 9 11 7 9 Ballistic Gun 11 | . 28 10 . . 9 Launcher 1 | . . . . 5 6 Impact Weapon 4 | . . 8 11 6 . Peak Build Rating 27 | 6 10 16 11 21 27 Average Rating 13 | 3 8 13 11 12 24 On Entrance 9 | . 6 10 11 11 21 Avg Prop Armor Cover (%) . | . . . . . . Naked Turns . | . . . . . . Heaviest Build 39 | 12 17 35 32 36 39 Greatest Support 83 | 20 20 40 20 43 83 Greatest Overweight (x) 11 | . . 1 1 11 1 Average Overweight (x) . | . . . 1 5 . Largest Inventory Capacity 15 | 8 15 15 15 15 15 Average Capacity 12 | 6 8 14 15 15 15 Most Carried 9 | 5 8 9 7 6 7 Average Carried 5 | 1 6 7 6 4 5 Final Capacity 15 | 8 8 15 15 15 15 Final Carried 8 | 2 8 6 7 3 5 Class Distribution -------------------- 87% | Mutant 12% | Scavenger-Mutant Dominant Class ---------------- Mutant | -10/Materials Mutant | -9/Materials Mutant | -9/Mines Mutant | -8/Materials Mutant | -8/Storage Resources | -11 -10 -9 -9 -8 -8 ----------- Run | Yrd Mat Mat Min Mat Sto Matter Collected 1332 | 215 414 181 . 132 390 Remotely . | . . . . . . Salvage Created 2105 | . 403 643 12 345 702 Parts 101 | . 26 32 . 15 28 Haulers Intercepted 1 | . . . . 1 . Recyclers Shooed 3 | . . . . . 3 Parts Field Recycled . | . . . . . . Retrieved Matter . | . . . . . . Parts Self-Destructed . | . . . . . . Prevented . | . . . . . . Parts Restored . | . . . . . . Kills | -11 -10 -9 -9 -8 -8 ------- Run | Yrd Mat Mat Min Mat Sto Combat Hostiles Destroyed 57 | . 13 19 . 6 19 Melee 9 | . . 7 . 2 . Guns 28 | . 13 8 . . 7 AOE 15 | . . . . 3 12 Classes Destroyed 13 | . 3 3 1 2 4 Worker 6 | . . 2 . 1 3 Builder 1 | . . . . . 1 Tunneler 2 | . . . 1 1 . Hauler 1 | . . . . 1 . Recycler 4 | . 1 1 . 1 1 Mechanic 2 | . . . . 1 1 Watcher 3 | . . 1 . 1 1 Swarmer 13 | . 5 8 . . . Grunt 31 | . 8 8 . 4 11 Brawler 2 | . . . . . 2 Duelist 4 | . . . . . 4 Sentry 5 | . . 3 . 2 . Hunter 2 | . . . . . 2 Best Kill Streak 9 | . 4 4 1 7 9 Combat Bots Only 6 | . 3 4 . 2 6 Max Kills in Single Turn 4 | . 2 2 1 2 4 Gunslinging . | . . . . . . Exploded 2 | . . . . 1 2 Melee 1 | . . 1 . 1 . Uniques/NPCs Destroyed . | . . . . . . Combat | -11 -10 -9 -9 -8 -8 -------- Run | Yrd Mat Mat Min Mat Sto Hostile Shots Fired 354 | . 64 94 . 88 108 Missed 97 | . 14 32 . 22 29 Hits 257 | . 50 62 . 66 79 Melee 2 | . . . . . 2 Projectile 255 | . 50 62 . 66 77 Critical Strikes 7 | . 1 . . 5 1 Actively Blocked 1 | . . . . 1 . Damage Taken 3758 | . 538 855 . 1003 1362 Core 761 | . 70 141 . 390 160 Absorbed by Shields . | . . . . . . Redirected to Shielding 194 | . 37 16 . 106 35 Core Remaining (%) 78 | 100 72 . 64 . . Volleys Fired 103 | . 38 14 . 11 40 Largest 2 | . 2 2 . 1 2 Hottest 69 | . 46 46 . 39 69 Shots Fired 175 | . 77 18 . 11 69 Gun 145 | . 77 18 . . 50 Cannon . | . . . . . . Launcher 30 | . . . . 11 19 Special . | . . . . . . Kinetic 145 | . 77 18 . . 50 Thermal . | . . . . . . Explosive 30 | . . . . 11 19 Electromagnetic . | . . . . . . Robot Hit Streak 19 | . 7 17 . 19 11 Robot Miss Streak 7 | . 7 5 . 2 6 Penetration Max 1 | . . . . . 1 Secondary Targets 2 | . 2 . . . . Max Gunslinging Chain 1 | . 1 . . . . Shots Hit Robots 156 | . 51 46 1 17 41 Core Hits 135 | . 26 19 . 17 73 Critical Kills 4 | . . 3 . . 1 Critical Parts Destroyed 4 | . 1 1 . 2 . Critical Strikes 9 | . 1 4 . 3 1 Destroy 3 | . 1 1 . . 1 Smash 6 | . . 3 . 3 . Melee Attacks 49 | . . 34 1 14 . Impact 49 | . . 34 1 14 . Slashing . | . . . . . . Piercing . | . . . . . . Sneak Attacks 5 | . . 3 1 1 . Combat Hostiles . | . . . . . . Follow-up Attacks . | . . . . . . Damage Inflicted 6596 | . 743 1545 81 1308 2919 Guns 1598 | . 740 215 . . 643 Cannons . | . . . . . . Explosions 3148 | . . . . 886 2262 Melee 1833 | . . 1330 81 422 . Ramming 17 | . 3 . . . 14 Kinetic 1598 | . 740 215 . . 643 Thermal . | . . . . . . Explosive 3148 | . . . . 886 2262 Electromagnetic . | . . . . . . Impact 1833 | . . 1330 81 422 . Slashing . | . . . . . . Piercing . | . . . . . . Highest Corruption 1 | . 1 . . . . Average Corruption 1 | . 1 . . . . Corruption Purged . | . . . . . . Corruption Blocked . | . . . . . . Effects 3 | . 3 . . . . Energy Discharges 1 | . 1 . . . . Data Loss (minor) 1 | . 1 . . . . Misfires 1 | . 1 . . . . Overload Shots . | . . . . . . Overflow Damage 611 | . . 349 61 166 35 Projectiles . | . . . . . . Explosions 70 | . . . . 35 35 Melee 541 | . . 349 61 131 . Knockbacks 8 | . . 8 . . . Impact 7 | . . 7 . . . Kinetic . | . . . . . . Secondary 1 | . . 1 . . . Self-Inflicted Damage 125 | . . . . 22 103 Shots 5 | . . . . 1 4 Rammed 3 | . . . . . 3 Targets Rammed 5 | . 2 . . . 3 Kicked 2 | . 2 . . . . Crushed . | . . . . . . Highest Temperature 25 | . 22 . . 2 25 Average Temperature 7 | . 8 . . 2 7 Received Heat Transfer 1308 | . 222 213 . 477 396 Siege Activations . | . . . . . . Martial Activations . | . . . . . . Shielding Activations . | . . . . . . Robots Disrupted . | . . . . . . Combat Hostiles . | . . . . . . Robots Corrupted 7 | . . 5 1 1 . Combat Hostiles 5 | . . 4 . 1 . Parts Fried 7 | . . 5 1 1 . Impact Corruptions 20 | . . 14 2 4 . Robots Melted . | . . . . . . Combat Hostiles . | . . . . . . Parts Melted . | . . . . . . Heat Transferred . | . . . . . . Parts Sabotaged . | . . . . . . Parts Stolen . | . . . . . . Parts Stripped . | . . . . . . Power Chain Reactions . | . . . . . . Alert | -11 -10 -9 -9 -8 -8 ------- Run | Yrd Mat Mat Min Mat Sto Maximum Alert Level 2 | . 1 1 . . 2 Low Security (%) 88 | 100 99 82 100 100 53 Level 1 5 | . . 17 . . 10 Level 2 6 | . . . . . 35 Level 3 . | . . . . . . Level 4 . | . . . . . . Level 5 . | . . . . . . High Security . | . . . . . . Max Security . | . . . . . . Peak Influence 554 | . 200 239 82 132 554 Initial 82 | . . 59 82 . 37 Average 96 | . 71 165 12 45 216 Influence Increases 1915 | . 330 498 5 296 786 Destroy 0b10 Robot/C 1200 | . 260 380 . 120 440 Destroy 0b10 Robot/NC 95 | . 5 20 5 30 35 Destroy Leader 258 | . 50 82 . 34 92 Allied During Kill 13 | . . . . . 13 Successful Hack 9 | . . . . . 9 Disable Machine 90 | . . . . 15 75 Destroy Structure 190 | . . 1 . 82 107 Lose Combat Pursuer 60 | . 15 15 . 15 15 Influence Decreases 1407 | . 190 425 218 208 366 Entered New Map 263 | . . 81 131 . 51 Time Decay 899 | . 190 254 87 163 205 Lost Part 205 | . . 90 . 45 70 Lost Ally 40 | . . . . . 40 Squads Dispatched 12 | . 1 2 . 1 8 Investigation 3 | . 1 1 . . 1 Extermination . | . . . . . . Reinforcement 4 | . . 1 . 1 2 Assault 2 | . . . . . 2 Garrison 3 | . . . . . 3 Intercept . | . . . . . . Searches Triggered . | . . . . . . Construction Impeded 1 | . . . . . 1 Haulers Reinforced . | . . . . . . Active Scanning Responses . | . . . . . . Cargo Convoy Interrupts . | . . . . . . Stealth | -11 -10 -9 -9 -8 -8 --------- Run | Yrd Mat Mat Min Mat Sto Distress Signals 13 | . 3 3 . 3 4 Communications Jammed . | . . . . . . Distress Signals . | . . . . . . Times Spotted 99 | . 22 27 . 13 37 Peak Tracking Total 6 | . 5 5 . 6 6 Tactical Retreats 4 | . 1 1 . 1 1 Traps | -11 -10 -9 -9 -8 -8 ------- Run | Yrd Mat Mat Min Mat Sto Traps Triggered 3 | . 1 . . . 2 Indirectly . | . . . . . . Trap Hack Attempts . | . . . . . . Triggered . | . . . . . . Disarmed . | . . . . . . Reprogrammed . | . . . . . . Reused . | . . . . . . Traps Extracted . | . . . . . . Installed . | . . . . . . Triggered . | . . . . . . Machines | -11 -10 -9 -9 -8 -8 ---------- Run | Yrd Mat Mat Min Mat Sto Machines Disabled 6 | . . . . 1 5 Max in Single Turn 1 | . . . . 1 1 Machines Repaired . | . . . . . . Machines Dismantled . | . . . . . . Machines Sabotaged . | . . . . . . Overloaded Fab Kills . | . . . . . . Hacking | -11 -10 -9 -9 -8 -8 --------- Run | Yrd Mat Mat Min Mat Sto Machines Accessed 8 | . 3 2 . . 3 Terminals 7 | . 2 2 . . 3 Fabricators . | . . . . . . Repair Stations . | . . . . . . Recycling Units 1 | . 1 . . . . Scanalyzers . | . . . . . . Garrison Access . | . . . . . . Total Hacks 13 | . 6 3 . . 4 Successful 6 | . 1 1 . . 4 Failed 7 | . 5 2 . . . Catastrophic 1 | . 1 . . . . Database Lockouts . | . . . . . . Manual 9 | . 5 3 . . 1 Terminals 12 | . 5 3 . . 4 Fabricators . | . . . . . . Repair Stations . | . . . . . . Recycling Units 1 | . 1 . . . . Scanalyzers . | . . . . . . Garrison Access . | . . . . . . Terminal Hacks 5 | . . 1 . . 4 Record 2 | . . . . . 2 Open Door 2 | . . . . . 2 Branch Access Points 1 | . . 1 . . . Fabricator Hacks . | . . . . . . Repair Station Hacks . | . . . . . . Recycling Unit Hacks 1 | . 1 . . . . Report Inventory 1 | . 1 . . . . Scanalyzer . | . . . . . . Garrison Access Hacks . | . . . . . . Unauthorized Hacks . | . . . . . . Terminals . | . . . . . . Fabricators . | . . . . . . Repair Stations . | . . . . . . Recycling Units . | . . . . . . Scanalyzers . | . . . . . . Garrison Access . | . . . . . . Data Cores Recovered . | . . . . . . Used . | . . . . . . Hacking Detections 5 | . 3 1 . . 1 Full Trace Events 1 | . 1 . . . . Feedback Events 1 | . 1 . . . . Corruption 1 | . 1 . . . . Feedback Blocked . | . . . . . . Robot Schematics Acquired . | . . . . . . Robots Built . | . . . . . . Authchips . | . . . . . . Time . | . . . . . . Total Robot Build Rating . | . . . . . . Part Schematics Acquired . | . . . . . . Parts Built . | . . . . . . Authchips . | . . . . . . Time . | . . . . . . Total Part Build Rating . | . . . . . . Part Studies Acquired . | . . . . . . Parts Repaired . | . . . . . . Time . | . . . . . . Parts Recycled . | . . . . . . Recycled Matter . | . . . . . . Retrieved Matter . | . . . . . . Retrieved Components . | . . . . . . Parts Scanalyzed . | . . . . . . Part Schematics Acquired . | . . . . . . Parts Damaged . | . . . . . . Bothacking | -11 -10 -9 -9 -8 -8 ------------ Run | Yrd Mat Mat Min Mat Sto Used RIF Installer . | . . . . . . Robots Hacked . | . . . . . . Non-combat . | . . . . . . Combat . | . . . . . . Robot Hacks Applied . | . . . . . . Relay Couplers Released . | . . . . . . Fabnet Peak Effective % . | . . . . . . Robots Rewired . | . . . . . . Allies Hacked . | . . . . . . Hacks Repelled . | . . . . . . Allies | -11 -10 -9 -9 -8 -8 -------- Run | Yrd Mat Mat Min Mat Sto Total Allies 2 | . . . . . 2 Largest Group 2 | . . . . . 2 Highest-Rated Group 62 | . . . . . 62 Highest-Rated Ally 31 | . . . . . 31 Total Orders . | . . . . . . Ally Attacks 22 | . . . . . 22 Total Damage 360 | . . . . . 360 Kills 3 | . . . . . 3 Allies Corrupted . | . . . . . . Allies Melted . | . . . . . . Intel | -11 -10 -9 -9 -8 -8 ------- Run | Yrd Mat Mat Min Mat Sto Active Infowar (turns) 873 | . . . . 367 506 Terrain 324 | . . . . 324 . Machine Analysis 549 | . . . . 43 506 Robot Analysis Total . | . . . . . . Derelict Logs Recovered 1 | . . . 1 . . Drone Launches . | . . . . . . Drone Recoveries . | . . . . . . Exploration | -11 -10 -9 -9 -8 -8 ------------- Run | Yrd Mat Mat Min Mat Sto Turns Passed 2952 | 47 793 541 620 445 506 Spaces Moved 1453 | 33 514 260 325 102 219 Core 66 | 9 . . . 57 . Treads 256 | . . . . 37 219 Legs 1131 | 24 514 260 325 8 . Wheels . | . . . . . . Hover . | . . . . . . Flight . | . . . . . . Fastest Speed 50 | 50 120 120 190 165 162 Average Speed 160 | 100 120 129 190 359 164 Slowest Speed 600 | 120 120 190 190 600 250 Overloaded Moves . | . . . . . . Propulsion Burnouts . | . . . . . . Robots Hopped . | . . . . . . Potential Cave-ins . | . . . . . . Cave-ins Triggered . | . . . . . . Exploration Rate (%) 44 | 3 90 31 71 17 53 Regions Visited 5 Branch Regions 2 Pre-discovered Areas 2 | . . . 2 . . Known Exits Taken 1 | . . 1 . . . Unknown Exits Taken 4 | 1 1 . 1 1 . Scrap Searched . | . . . . . . Spaces Dug 1 | . . 1 . . . Terrain Destroyed 217 | . . 1 . 103 113 Melee 1 | . . 1 . . . Projectile . | . . . . . . AOE 216 | . . . . 103 113 Terrain Rammed . | . . . . . . Walls Destroyed . | . . . . . . Machines Disabled . | . . . . . . Actions | -11 -10 -9 -9 -8 -8 --------- Run | Yrd Mat Mat Min Mat Sto Total 1807 | 46 617 387 326 143 288 Wait 82 | . 27 54 . 1 . Move 1448 | 32 513 259 324 101 219 Hop . | . . . . . . Pick Up 51 | 8 17 10 1 6 9 Fast Attach . | . . . . . . Attach 34 | 6 4 8 . 10 6 Detach . | . . . . . . Swap 20 | . 6 4 . . 10 Drop 15 | . 10 4 . . 1 Fire 103 | . 38 14 . 11 40 Melee 49 | . . 34 1 14 . Ram . | . . . . . . Kick 2 | . 2 . . . . Crush 3 | . . . . . 3 Escape Stasis . | . . . . . . Rewire . | . . . . . . Trap . | . . . . . . Miscellaneous . | . . . . . . Route ------- -11/Scrapyard -10/Materials (discovered 4 exits: *Mat x3 / [*Min]) -9/Materials (discovered 2 exits: *Min x2) -9/Mines (discovered 2 exits: [*Mat x2]) -8/Materials (discovered 2 exits: *Sto x2) -8/Storage (discovered 1 exit: [*Fac]) History --------- Turn | Location | Event 3 | -11/Scrapyard | Discovered new exit (range 15) 48 | -11/Scrapyard | Entered Materials 187 | -10/Materials | Discovered new exit (range 15) 312 | -10/Materials | Build established: Mutant 314 | -10/Materials | Discovered new exit (range 16) 434 | -10/Materials | Discovered new exit (range 5) 596 | -10/Materials | Discovered new exit (range 15) 841 | -10/Materials | Entered another Materials area 841 | -9/Materials | Evolved 2 slots: Propulsion x2 1242 | -9/Materials | Identified exit to Mines 1329 | -9/Materials | Lost 4 parts (1p2n1w) 1382 | -9/Materials | Entered Mines 1580 | -9/Mines | A weapon hastily lodged in a ceiling crevice suddenly fell to the ground 1649 | -9/Mines | Discovered new exit (range 5) 1754 | -9/Mines | Learned location of Zion (-6) 1781 | -9/Mines | Discovered new exit (range 7) 1782 | -9/Mines | Learned location of Storage (-8) 2002 | -9/Mines | Entered Materials 2002 | -8/Materials | Evolved 2 slots: Utility x2 2016 | -8/Materials | Discovered new exit (range 16) 2310 | -8/Materials | Core integrity fell below 50% 2373 | -8/Materials | Lost 4 parts (2u2w) 2396 | -8/Materials | Discovered new exit (range 13) 2447 | -8/Materials | Entered Storage 2634 | -8/Storage | Met a pair of Derelict thieves 2748 | -8/Storage | Garrison activated, responded to threat 2862 | -8/Storage | Core integrity fell below 20% 2925 | -8/Storage | Discovered new exit (range 15) 2941 | -8/Storage | Lost 3 parts (1p2n) 2953 | -8/Storage | Destroyed by Y-45 Defender with Beam Rifle Last Messages --------------- 02926_ K-01 Serf collects debris. 02926_ R-06 Scavenger collects Wheel. 02926_ Slug penetrates Earth. 02927_ The unstable cave ceiling collapses. 02927_ K-01 Serf collects debris. 02928_ M-28 Smith repairs R-06 Scavenger. 02930_ K-01 Serf collects debris. 02931_ M-28 Smith fits Backup Plating III on K-01 Serf. 02932_ K-01 Serf collects debris. 02933_ M-28 Smith repairs K-01 Serf Lgt. Ion Engine. 02937_ K-01 Serf collects debris. 02938_ Critical hit (Burn: +37). 02939_ K-01 Serf collects debris. 02947_ K-01 Serf destroyed. 02947_ Triggered Ambush Trap. 02947_ L-31 Rogue emerges from a hatch in the floor. 02947_ S-10 Pest emerges from a hatch in the floor. 02947_ Lgt. Treads destroyed. 02951_ Shotgun destroyed. 02952_ Slammed into K-01 Serf. Map ----- +----------------------------------------------------+ | | | | | | | | | | | | | | | | | | | | | | | | | | | | | | | | | | | ????????????????##??##########????? | | ????????????????? ##???? | | ????????????????? """ """ #???? | | ?????????????????? """ """ #????? | | ???????????????????""" """ #????? | | ???????????????????? #????? | | ???????############## = # #####+# | | ???????# s *% | | ???????# <@lk Y | | ???????# s Y % | | ???????######+######### # #####/# | | ??????????? ???# # | | ?????????# ]?# # """ ? | | ?????????# # = """ ? | | ?????????# #" """ ? | | ?????????# # # | | ?????????# ]]] # " # [[ | | ?????????# ]]] # " #?[[ | | ????????? ]] # #??[ | | ?????????#####"T"### #???### | | ??????????????"""#?#+########?????? | | ??????????????###??# #????????????? | | ???????????????????# #????????????? | | ???????????????????# #???????????## | | ???????????????????# ######### | | ???????????????????# | | ???????????######### T | | ???????????#!!!! + | | ???????????# ## ####### | | ???????????#!!!! ## ########?? # | | ???????????######T### # #?? # | | ????????????????###?# # """ #? # | | ???????????????????## # """ # # | +----------------------------------------------------+ Best States ------------- Heat Dissipation 31 Energy Generation 14 Energy Capacity 265 Matter Stores 300 Matter Capacity 300 Sight Range 16 Terrain Scan Range 14 Terrain Scan Density 85 Propulsion Shielding 33 Utility Shielding 66 Evasion (%) 55 Recoil Reduction 4 Item Schematics ----------------- None Robot Schematics ------------------ None Fabricated ------------ Nothing Repaired ---------- Nothing Studied --------- None Alien Tech Used ----------------- None Achievements -------------- None Challenges ------------ None Game ------ Seed AntigravShockRecalibrator Manual? 0 Play Time 00:29:26 Cumulative 11.6 hours Start 2026.07.09 @ 16:00:22 End 2026.07.09 @ 16:33:29 Sessions 1 Manual Loads 0 Difficulty Rogue Special Mode None Game No. 21 Rogue 20 Adventurer 1 Explorer 0 Win Type - Total 0 Types 0/0/0/0/0/0/0/0/0/0 Lore% 15 Gallery% 17 Achievement% 16 Wizard Run 0 Options --------- Layout 0 ASCII 0 Keyboard 0 Movement Mouse Keybinds 0 Fullscreen 2 Font 18/SmallcapsGlow Map View 38x25 Zoom Use 98% Tactical HUD 1 Map Filters NONE Filters NONE Steam 1 RUN: 8dc56234-c066-47a2-9522-549e3b5105db